lending/lending_fUSD_20240120
["ID","MTS","AMOUNT","RATE_DAILY","PERIOD"]
[312282998,1705740656875,-500.0,0.00024931,2]
[312282999,1705740656885,-500.0,0.00024931,2]
[312283000,1705740656894,-500.0,0.00024931,2]
[312283001,1705740656903,-650.55,0.00024931,2]
[312283002,1705740656912,-515.63184041,0.00024931,2]
[312283003,1705740656921,-500.0,0.00024931,2]
[312283004,1705740656930,-500.0,0.00024931,2]
[312283005,1705740656939,-500.0,0.00024931,2]
[312283006,1705740656949,-515.69896807,0.00024931,2]
[312283007,1705740656958,-500.0,0.00024931,2]
[312283008,1705740656966,-654.4,0.00024931,2]
[312283009,1705740656975,-500.0,0.00024931,2]
[312283010,1705740656984,-500.0,0.00024931,2]
[312283011,1705740656993,-500.0,0.00024931,2]
[312283012,1705740657002,-500.0,0.00024931,2]
[312283013,1705740657011,-500.0,0.00024931,2]
[312283014,1705740657020,-500.0,0.00024931,2]
[312283015,1705740657030,-500.0,0.00024931,2]
[312283016,1705740657044,-814.37,0.00024931,2]
[312283017,1705740657053,-584.5,0.00024931,2]
[312283018,1705740657062,-500.0,0.00024931,2]
[312283019,1705740657070,-500.0,0.00024931,2]
[312283020,1705740657079,-500.0,0.00024931,2]
[312283021,1705740657090,-500.0,0.00024931,2]
[312283022,1705740657098,-500.0,0.00024931,2]
[312283023,1705740657108,-500.0,0.00024931,2]
[312283024,1705740657119,-500.0,0.00024931,2]
[312283025,1705740657128,-500.0,0.00024931,2]
[312283026,1705740657138,-2304.03,0.00024931,2]
[312283027,1705740657147,-300.0,0.00024931,2]
[312283028,1705740657156,-500.0,0.00024931,2]
[312283029,1705740657165,-500.0,0.00024931,2]
[312283030,1705740657174,-500.0,0.00024931,2]
[312283031,1705740657183,-500.0,0.00024931,2]
[312283032,1705740657193,-500.0,0.00024931,2]
[312283033,1705740657203,-500.0,0.00024931,2]
[312283034,1705740657211,-500.0,0.00024931,2]
[312283035,1705740657221,-500.0,0.00024931,2]
[312283036,1705740657230,-500.0,0.00024931,2]
[312283037,1705740657239,-500.0,0.00024931,2]
[312283038,1705740657248,-627.33569214,0.00024931,2]
[312283039,1705740657257,-500.0,0.00024931,2]
[312283040,1705740657267,-834.08,0.00024931,2]
[312283041,1705740657276,-8258.53,0.00024931,2]
[312283042,1705740657285,-500.0,0.00024931,2]
[312283043,1705740657294,-500.0,0.00024931,2]
[312283044,1705740657303,-500.0,0.00024931,2]
[312283045,1705740657312,-503.53757713,0.00024931,2]
[312283046,1705740657321,-512.52,0.00024931,2]
[312283047,1705740657331,-526.13,0.00024931,2]
[312283048,1705740657340,-500.0,0.00024931,2]
[312283049,1705740657349,-500.0,0.00024931,2]
[312283050,1705740657359,-500.0,0.00024931,2]
[312283051,1705740657368,-500.0,0.00024931,2]
[312283052,1705740657377,-500.0,0.00024931,2]
[312283053,1705740657386,-500.0,0.00024931,2]
[312283054,1705740657395,-500.0,0.00024931,2]
[312283055,1705740657404,-3152.7,0.00024931,2]
[312283056,1705740657414,-500.0,0.00024931,2]
[312283057,1705740657423,-1522.51,0.00024931,2]
[312283058,1705740657432,-500.0,0.00024931,2]
[312283059,1705740657441,-500.0,0.00024931,2]
[312283060,1705740657451,-500.0,0.00024931,2]
[312283061,1705740657460,-484.3,0.00024931,2]
[312283062,1705740657469,-500.0,0.00024931,2]
[312283063,1705740657479,-510.94790962,0.00024931,2]
[312283064,1705740657488,-500.0,0.00024931,2]
[312283065,1705740657497,-1640.38,0.00024931,2]
[312283066,1705740657507,-500.0,0.00024931,2]
[312283067,1705740657516,-661.58,0.00024931,2]
[312283068,1705740657525,-9834.33,0.00024931,2]
[312283069,1705740657534,-4026.87,0.00024931,2]
[312283070,1705740657543,-500.0,0.00024931,2]
[312283071,1705740657552,-2194.22,0.00024931,2]
[312283072,1705740657562,-500.0,0.00024931,2]
[312283073,1705740657571,-500.0,0.00024931,2]
[312283074,1705740657580,-500.0,0.00024931,2]
[312283075,1705740657589,-500.0,0.00024931,2]
[312283076,1705740657599,-500.0,0.00024931,2]
[312283077,1705740657608,-500.0,0.00024931,2]
[312283078,1705740657617,-500.0,0.00024931,2]
[312283079,1705740657627,-500.0,0.00024931,2]
[312283080,1705740657637,-692.33,0.00024931,2]
[312283081,1705740657647,-500.0,0.00024931,2]
[312283082,1705740657656,-1149.32,0.00024931,2]
[312283083,1705740657665,-954.76,0.00024931,2]
[312283084,1705740657674,-537.68381667,0.00024931,2]
[312283085,1705740657683,-500.0,0.00024931,2]
[312283086,1705740657692,-500.0,0.00024931,2]
[312283087,1705740657702,-500.0,0.00024931,2]
[312283088,1705740657711,-249.47948232,0.00024931,2]
[312283089,1705740657720,-520.94997183,0.00024931,2]
[312283090,1705740657729,-500.0,0.00024931,2]
[312283091,1705740657738,-1752.88,0.00024931,2]
[312283092,1705740657747,-500.0,0.00024931,2]
[312283093,1705740657756,-1604.07,0.00024931,2]
[312283094,1705740657765,-500.0,0.00024931,2]
[312283095,1705740657775,-500.0,0.00024931,2]
[312283096,1705740657783,-1111.05,0.00024931,2]
[312283097,1705740657793,-304.55643752,0.00024931,2]
[312283098,1705740657802,-500.0,0.00024931,2]
[312283099,1705740657811,-500.0,0.00024931,2]
[312283100,1705740657820,-500.0,0.00024931,2]
[312283101,1705740657830,-500.0,0.00024931,2]
[312283102,1705740657839,-1122.98,0.00024931,2]
[312283103,1705740657848,-724.69,0.00024931,2]
[312283104,1705740657858,-500.0,0.00024931,2]
[312283105,1705740657867,-500.0,0.00024931,2]
[312283106,1705740657877,-500.0,0.00024931,2]
[312283107,1705740657886,-510.27,0.00024931,2]
[312283108,1705740657895,-500.0,0.00024931,2]
[312283109,1705740657905,-1605.74,0.00024931,2]
[312283110,1705740657914,-500.0,0.00024931,2]
[312283111,1705740657923,-500.0,0.00024931,2]
[312283112,1705740657933,-500.0,0.00024931,2]
[312283113,1705740657942,-500.0,0.00024931,2]
[312283114,1705740657951,-500.0,0.00024931,2]
[312283115,1705740657961,-257.3,0.00024931,2]
[312283116,1705740657971,-500.0,0.00024931,2]
[312283117,1705740657980,-552.33,0.00024931,2]
[312283118,1705740657989,-500.0,0.00024931,2]
[312283119,1705740657998,-779.78,0.00024931,2]
[312283120,1705740658008,-500.0,0.00024931,2]
[312283121,1705740658017,-500.0,0.00024931,2]
[312283122,1705740658026,-500.0,0.00024931,2]
[312283123,1705740658040,-500.0,0.00024931,2]
[312283124,1705740658049,-500.0,0.00024931,2]
[312283125,1705740658058,-500.0,0.00024931,2]
[312283126,1705740658068,-500.0,0.00024931,2]
[312283127,1705740658078,-500.0,0.00024931,2]
[312283128,1705740658087,-740.71,0.00024931,2]
[312283129,1705740658097,-820.4,0.00024931,2]
[312283130,1705740658106,-4116.96,0.00024931,2]
[312283131,1705740658116,-500.0,0.00024931,2]
[312283132,1705740658126,-500.0,0.00024931,2]
[312283133,1705740658135,-3100.58,0.00024931,2]
[312283134,1705740658146,-508.58,0.00024931,2]
[312283135,1705740658156,-500.0,0.00024931,2]
[312283136,1705740658165,-500.0,0.00024931,2]
[312283137,1705740658175,-500.0,0.00024931,2]
[312283138,1705740658185,-601.97,0.00024931,2]
[312283139,1705740658194,-588.27,0.00024931,2]
[312283140,1705740658203,-500.0,0.00024931,2]
[312283141,1705740658212,-518.65110504,0.00024931,2]
[312283142,1705740658222,-2128.99,0.00024931,2]
[312283143,1705740658232,-500.0,0.00024931,2]
[312283144,1705740658242,-500.0,0.00024931,2]
[312283145,1705740658251,-981.45,0.00024931,2]
[312283146,1705740658261,-500.0,0.00024931,2]
[312283147,1705740658271,-500.0,0.00024931,2]
[312283148,1705740658280,-500.0,0.00024931,2]
[312283149,1705740658290,-1582.37,0.00024931,2]
[312283150,1705740658299,-500.0,0.00024931,2]
[312283151,1705740658309,-506.56230129,0.00024931,2]
[312283152,1705740658319,-500.0,0.00024931,2]
[312283153,1705740658329,-227.36,0.00024931,2]
[312283154,1705740658339,-500.0,0.00024931,2]
[312283155,1705740658348,-517.91997867,0.00024931,2]
[312283156,1705740658358,-500.0,0.00024931,2]
[312283157,1705740658368,-500.0,0.00024931,2]
[312283158,1705740658379,-500.0,0.00024931,2]
[312283159,1705740658389,-500.0,0.00024931,2]
[312283160,1705740658398,-500.0,0.00024931,2]
[312283161,1705740658409,-500.0,0.00024931,2]
[312283162,1705740658419,-500.0,0.00024931,2]
[312283163,1705740658430,-1302.49,0.00024931,2]
[312283164,1705740658439,-500.0,0.00024931,2]
[312283165,1705740658449,-500.0,0.00024931,2]
[312283166,1705740658457,-500.0,0.00024931,2]
[312283167,1705740658467,-499.2446387,0.00024931,2]
[312283168,1705740658476,-500.0,0.00024931,2]
[312283169,1705740658486,-569.40816248,0.00024931,2]
[312283170,1705740658495,-500.0,0.00024931,2]
[312283171,1705740658504,-500.0,0.00024931,2]
[312283172,1705740658514,-500.0,0.00024931,2]
[312283173,1705740658524,-500.0,0.00024931,2]
[312283174,1705740658533,-491.53078467,0.00024931,2]
[312283175,1705740658543,-659.73,0.00024931,2]
[312283176,1705740658553,-500.0,0.00024931,2]
[312283177,1705740658562,-500.0,0.00024931,2]
[312283178,1705740658572,-511.75174222,0.00024931,2]
[312283179,1705740658581,-567.95,0.00024931,2]
[312283180,1705740658591,-500.0,0.00024931,2]
[312283181,1705740658600,-500.0,0.00024931,2]
[312283182,1705740658610,-500.0,0.00024931,2]
[312283183,1705740658619,-1831.22,0.00024931,2]
[312283184,1705740658630,-1093.63,0.00024931,2]
[312283185,1705740658640,-500.0,0.00024931,2]
[312283186,1705740658650,-539.7,0.00024931,2]
[312283187,1705740658662,-841.85,0.00024931,2]
[312283188,1705740658671,-500.0,0.00024931,2]
[312283189,1705740658681,-500.0,0.00024931,2]
[312283190,1705740658690,-500.0,0.00024931,2]
[312283191,1705740658700,-500.0,0.00024931,2]
[312283192,1705740658710,-514.8516474,0.00024931,2]
[312283193,1705740658719,-500.0,0.00024931,2]
[312283194,1705740658730,-736.25,0.00024931,2]
[312283195,1705740658740,-7858.55,0.00024931,2]
[312283196,1705740658751,-538.5423685,0.00024931,2]
[312283197,1705740658762,-1317.01,0.00024931,2]
[312283198,1705740658773,-500.0,0.00024931,2]
[312283199,1705740658783,-748.4,0.00024931,2]
[312283200,1705740658793,-500.0,0.00024931,2]
[312283201,1705740658804,-500.0,0.00024931,2]
[312283202,1705740658814,-500.0,0.00024931,2]
[312283203,1705740658824,-500.0,0.00024931,2]
[312283204,1705740658835,-500.0,0.00024931,2]
[312283205,1705740658844,-794.2,0.00024931,2]
[312283206,1705740658853,-500.0,0.00024931,2]
[312283207,1705740658862,-768.82,0.00024931,2]
[312283208,1705740658872,-500.0,0.00024931,2]
[312283209,1705740658882,-670.12,0.00024931,2]
[312283210,1705740658893,-500.0,0.00024931,2]
[312283211,1705740658903,-500.0,0.00024931,2]
[312283212,1705740658913,-513.50542825,0.00024931,2]
[312283213,1705740658923,-500.0,0.00024931,2]
[312283214,1705740658934,-500.0,0.00024931,2]
[312283215,1705740658945,-500.0,0.00024931,2]
[312283216,1705740658954,-500.0,0.00024931,2]
[312283217,1705740658963,-508.62318909,0.00024931,2]
[312283218,1705740658972,-500.0,0.00024931,2]
[312283219,1705740658983,-500.0,0.00024931,2]
[312283220,1705740658993,-705.41,0.00024931,2]
[312283221,1705740659002,-500.0,0.00024931,2]
[312283222,1705740659011,-500.0,0.00024931,2]
[312283223,1705740659020,-500.0,0.00024931,2]
[312283224,1705740659030,-500.0,0.00024931,2]
[312283225,1705740659043,-500.0,0.00024931,2]
[312283226,1705740659053,-500.0,0.00024931,2]
[312283227,1705740659062,-500.0,0.00024931,2]
[312283228,1705740659071,-500.0,0.00024931,2]
[312283229,1705740659081,-5105.04,0.00024931,2]
[312283230,1705740659090,-500.0,0.00024931,2]
[312283231,1705740659099,-862.9,0.00024931,2]
[312283232,1705740659109,-773.43,0.00024931,2]
[312283233,1705740659119,-500.0,0.00024931,2]
[312283234,1705740659128,-485.65557639,0.00024931,2]
[312283235,1705740659138,-647.62,0.00024931,2]
[312283236,1705740659314,-500.0,0.00024931,2]
[312283237,1705740659324,-500.0,0.00024931,2]
[312283238,1705740659334,-500.0,0.00024931,2]
[312283239,1705740659344,-500.0,0.00024931,2]
[312283240,1705740659353,-500.0,0.00024931,2]
[312283241,1705740659362,-777.62,0.00024931,2]
[312283242,1705740659372,-500.0,0.00024931,2]
[312283243,1705740659382,-1170.65,0.00024931,2]
[312283244,1705740659391,-1112.24,0.00024931,2]
[312283245,1705740659400,-611.96,0.00024931,2]
[312283246,1705740659410,-500.0,0.00024931,2]
[312283247,1705740659419,-500.0,0.00024931,2]
[312283248,1705740659429,-500.0,0.00024931,2]
[312283249,1705740659438,-841.6,0.00024931,2]
[312283250,1705740659448,-500.0,0.00024931,2]
[312283251,1705740659458,-500.0,0.00024931,2]
[312283252,1705740659469,-500.0,0.00024931,2]
[312283253,1705740659478,-500.0,0.00024931,2]
[312283254,1705740659487,-630.39,0.00024931,2]
[312283255,1705740659496,-500.0,0.00024931,2]
[312283256,1705740659506,-508.42,0.00024931,2]
[312283257,1705740659515,-1119.82,0.00024931,2]
[312283258,1705740659524,-500.0,0.00024931,2]
[312283259,1705740659534,-500.0,0.00024931,2]
[312283260,1705740659543,-500.0,0.00024931,2]
[312283261,1705740659553,-500.0,0.00024931,2]
[312283262,1705740659563,-500.0,0.00024931,2]
[312283263,1705740659572,-500.0,0.00024931,2]
[312283264,1705740659582,-500.0,0.00024931,2]
[312283265,1705740659591,-500.0,0.00024931,2]
[312283266,1705740659600,-500.0,0.00024931,2]
[312283267,1705740659610,-500.0,0.00024931,2]
[312283268,1705740659619,-762.03,0.00024931,2]
[312283269,1705740659629,-500.0,0.00024931,2]
[312283270,1705740659638,-1848.57,0.00024931,2]
[312283271,1705740659648,-1189.41,0.00024931,2]
[312283272,1705740659657,-500.0,0.00024931,2]
[312283273,1705740659666,-866.93,0.00024931,2]
[312283274,1705740659676,-500.0,0.00024931,2]
[312283275,1705740659686,-500.0,0.00024931,2]
[312283276,1705740659695,-500.0,0.00024931,2]
[312283277,1705740659707,-1078.31,0.00024931,2]
[312283278,1705740659717,-500.0,0.00024931,2]
[312283279,1705740659727,-500.0,0.00024931,2]
[312283280,1705740659738,-500.0,0.00024931,2]
[312283281,1705740659747,-263.51,0.00024931,2]
[312283282,1705740659757,-500.0,0.00024931,2]
[312283283,1705740659767,-500.0,0.00024931,2]
[312283284,1705740659777,-530.0,0.00024931,2]
[312283285,1705740659786,-292.49167064,0.00024949,4]
[312283286,1705740659796,-150.0,0.00024953,4]
[312283287,1705740659805,-150.0,0.00024959,4]
[312283288,1705740659815,-292.49167064,0.00024975,4]
[312283289,1705740659825,-150.0,0.00024977,4]
[312283290,1705740659834,-150.0,0.0002499,4]
[312283291,1705740659844,-150.0,0.00024998,4]
[312283292,1705740659853,-500.0,0.00024999,4]
[312283293,1705740659863,-500.0,0.00024999,4]
[312283294,1705740659873,-500.0,0.00024999,4]
[312283295,1705740659883,-373.34476515,0.00024999,4]
[312283296,1705740659892,-162.20620003,0.00024999,4]
[312283297,1705740659901,-500.0,0.00024999,4]
[312283298,1705740659911,-244.46032871,0.00024999,4]
[312283299,1705740659920,-500.0,0.00024999,4]
[312283300,1705740659930,-500.0,0.00024999,4]
[312283301,1705740659939,-500.0,0.00024999,2]
[312283302,1705740659949,-316.57915686,0.00024999,2]
[312283303,1705740659961,-500.0,0.00024999,2]
[312283304,1705740659971,-500.0,0.00024999,2]
[312283305,1705740659980,-500.0,0.00024999,2]
[312283306,1705740659989,-204.82931315,0.00024999,2]
[312283307,1705740659998,-500.0,0.00024999,2]
[312283308,1705740660009,-500.0,0.00024999,2]
[312283309,1705740660019,-500.0,0.00024999,2]
[312283310,1705740660029,-500.0,0.00024999,2]
[312283311,1705740660039,-500.0,0.00024999,2]
[312283312,1705740660050,-500.0,0.00024999,2]
[312283313,1705740660060,-500.0,0.00024999,2]
[312283314,1705740660070,-500.0,0.00024999,2]
[312283315,1705740660081,-500.0,0.00024999,2]
[312283316,1705740660090,-500.0,0.00024999,2]
[312283317,1705740660100,-500.0,0.00024999,2]
[312283318,1705740660110,-500.0,0.00024999,2]
[312283319,1705740660121,-500.0,0.00024999,2]
[312283320,1705740660131,-264.2003023,0.00024999,2]
[312283321,1705740660141,-264.88248,0.00024999,4]
[312283322,1705740660151,-281.93172525,0.00024999,2]
[312283323,1705740660161,-500.0,0.00024999,2]
[312283324,1705740660170,-500.0,0.00024999,2]
[312283325,1705740660180,-200.0,0.00024999,2]
[312283326,1705740660189,-303.55478187,0.00025,2]
[312283327,1705740660199,-933.94016922,0.00025,2]
[312283328,1705740660210,-1584.56156338,0.00025,2]
[312283329,1705740660220,-201.20807406,0.00025,2]
[312283330,1705740660230,-202.08717836,0.00025,2]
[312283331,1705740660239,-150.0,0.00025,2]
[312283332,1705740660249,-3000.0,0.00025,2]
[312283333,1705740660259,-292.49167064,0.00025,4]
[312283334,1705740660269,-150.0,0.0002501,4]
[312283335,1705740660278,-2808.0951164,0.00025015,2]
[312283336,1705740660289,-687.7538149,0.00025015,2]
[312283337,1705740660299,-49930.2336532,0.00025015,2]
[312283338,1705740660309,-292.49167064,0.00025025,4]
[312283339,1705740660320,-150.0,0.00025028,4]
[312283340,1705740660330,-196.1922768,0.00025031,2]
[312283341,1705740660340,-150.0,0.00025031,2]
[312283342,1705740660350,-47405.32554693,0.00025032,2]
[312283343,1705740660360,-292.49167064,0.00025051,4]
[312283344,1705740660369,-157.67,0.00025054,2]
[312283345,1705740660379,-156.85,0.00025056,2]
[312283346,1705740660388,-150.0,0.00025061,2]
[312283347,1705740660397,-150.0,0.00025065,4]
[312283348,1705740660407,-165.61,0.00025066,2]
[312283349,1705740660416,-150.0,0.00025069,4]
[312283350,1705740660426,-292.49167064,0.00025076,4]
[312283351,1705740660435,-150.0,0.00025077,4]
[312283352,1705740660444,-150.0,0.00025088,4]
[312283353,1705740660454,-292.49167064,0.00025102,4]
[312283354,1705740660463,-150.0,0.00025103,4]
[312283355,1705740660472,-500.0,0.00025104,2]
[312283356,1705740660481,-151.88694272,0.00025115,2]
[312283357,1705740660490,-292.49167064,0.00025127,4]
[312283358,1705740660500,-150.0,0.00025141,4]
[312283359,1705740660510,-292.49167064,0.00025153,4]
[312283360,1705740660519,-2448.1785056,0.0002517,2]
[312283361,1705740660529,-292.49167064,0.00025178,4]
[312283362,1705740660539,-152.41320085,0.00025178,4]
[312283363,1705740660548,-190.81165427,0.00025178,4]
[312283364,1705740660557,-161.10423252,0.00025178,4]
[312283365,1705740660566,-190.49626797,0.00025178,4]
[312283366,1705740660576,-257.50932639,0.00025178,4]
[312283367,1705740660585,-269.89465923,0.00025178,4]
[312283368,1705740660595,-218.72369197,0.00025178,4]
[312283369,1705740660605,-248.44127617,0.00025178,4]
[312283370,1705740660614,-3985.3586811,0.00025188,2]
[312283371,1705740660623,-4022.4551806,0.00025188,2]
[312283372,1705740660633,-61227.9582742,0.00025188,2]
[312283373,1705740660642,-250.0,0.000252,2]
[312283374,1705740660651,-1000.0,0.000252,2]
[312283375,1705740660660,-500.0,0.00025204,2]
[312283376,1705740660670,-493.00077297,0.00025205,2]
[312283377,1705740660680,-500.0,0.00025205,2]
[312283378,1705740660689,-500.0,0.00025205,2]
[312283379,1705740660699,-500.0,0.00025205,2]
[312283380,1705740660710,-500.0,0.00025205,2]
[312283381,1705740660719,-500.0,0.00025205,2]
[312283382,1705740660728,-500.0,0.00025205,2]
[312283383,1705740660737,-477.65426901,0.00025205,2]
[312283384,1705740660747,-500.0,0.00025205,2]
[312283385,1705740660756,-500.0,0.00025205,2]
[312283386,1705740660765,-500.0,0.00025205,2]
[312283387,1705740660774,-500.0,0.00025205,2]
[312283388,1705740660784,-500.0,0.00025205,2]
[312283389,1705740660794,-520.07610055,0.00025205,2]
[312283390,1705740660803,-500.0,0.00025205,2]
[312283391,1705740660812,-500.0,0.00025205,2]
[312283392,1705740660821,-500.0,0.00025205,2]
[312283393,1705740660831,-500.0,0.00025205,2]
[312283394,1705740660840,-500.0,0.00025205,2]
[312283395,1705740660849,-500.0,0.00025205,2]
[312283396,1705740660859,-500.0,0.00025205,2]
[312283397,1705740660869,-500.0,0.00025205,2]
[312283398,1705740660878,-500.0,0.00025205,2]
[312283399,1705740660888,-500.0,0.00025205,2]
[312283400,1705740660897,-500.0,0.00025205,2]
[312283401,1705740660906,-500.0,0.00025205,2]
[312283402,1705740660916,-500.0,0.00025205,2]
[312283403,1705740660926,-500.0,0.00025205,2]
[312283404,1705740660935,-500.0,0.00025205,2]
[312283405,1705740660944,-500.0,0.00025205,2]
[312283406,1705740660954,-393.5,0.00025205,2]
[312283407,1705740660964,-500.0,0.00025205,2]
[312283408,1705740660973,-500.0,0.00025205,2]
[312283409,1705740660982,-500.0,0.00025205,2]
[312283410,1705740660992,-500.0,0.00025205,2]
[312283411,1705740661001,-500.0,0.00025205,2]
[312283412,1705740661011,-500.0,0.00025205,2]
[312283413,1705740661020,-500.0,0.00025205,2]
[312283414,1705740661030,-500.0,0.00025205,2]
[312283415,1705740661041,-500.0,0.00025205,2]
[312283416,1705740661053,-500.0,0.00025205,2]
[312283417,1705740661063,-500.0,0.00025205,2]
[312283418,1705740661072,-500.0,0.00025205,2]
[312283419,1705740661083,-500.0,0.00025205,2]
[312283420,1705740661092,-500.0,0.00025205,2]
[312283421,1705740661101,-500.0,0.00025205,2]
[312283422,1705740661111,-500.0,0.00025205,2]
[312283423,1705740661122,-500.0,0.00025205,2]
[312283424,1705740661132,-500.0,0.00025205,2]
[312283425,1705740661142,-500.0,0.00025205,2]
[312283426,1705740661152,-500.0,0.00025205,2]
[312283427,1705740661161,-500.0,0.00025205,2]
[312283428,1705740661171,-500.0,0.00025205,2]
[312283429,1705740661181,-500.0,0.00025205,2]
[312283430,1705740661191,-610.7,0.00025205,2]
[312283431,1705740661201,-500.0,0.00025205,2]
[312283432,1705740661211,-500.0,0.00025205,2]
[312283433,1705740661221,-500.0,0.00025205,2]
[312283434,1705740661231,-494.89209158,0.00025205,2]
[312283435,1705740661240,-500.0,0.00025205,2]
[312283436,1705740661250,-500.0,0.00025205,2]
[312283437,1705740661260,-500.0,0.00025205,2]
[312283438,1705740661269,-500.0,0.00025205,2]
[312283439,1705740661279,-500.0,0.00025205,2]
[312283440,1705740661288,-500.0,0.00025205,2]
[312283441,1705740661298,-500.0,0.00025205,2]
[312283442,1705740661310,-337.37,0.00025205,2]
[312283443,1705740661319,-500.0,0.00025205,2]
[312283444,1705740661329,-500.0,0.00025205,2]
[312283445,1705740661339,-500.0,0.00025205,2]
[312283446,1705740661349,-500.0,0.00025205,2]
[312283447,1705740661359,-500.0,0.00025205,2]
[312283448,1705740661369,-500.0,0.00025205,2]
[312283449,1705740661378,-500.0,0.00025205,2]
[312283450,1705740661388,-500.0,0.00025205,2]
[312283451,1705740661398,-500.0,0.00025205,2]
[312283452,1705740661407,-500.0,0.00025205,2]
[312283453,1705740661416,-500.0,0.00025205,2]
[312283454,1705740661426,-500.0,0.00025205,2]
[312283455,1705740661435,-500.0,0.00025205,2]
[312283456,1705740661445,-500.0,0.00025205,2]
[312283457,1705740661456,-500.0,0.00025205,2]
[312283458,1705740661465,-500.0,0.00025205,2]
[312283459,1705740661475,-500.0,0.00025205,2]
[312283460,1705740661484,-500.0,0.00025205,2]
[312283461,1705740661494,-500.0,0.00025205,2]
[312283462,1705740661504,-500.0,0.00025205,2]
[312283463,1705740661515,-500.0,0.00025205,2]
[312283464,1705740661525,-505.13,0.00025205,2]
[312283465,1705740661534,-500.0,0.00025205,2]
[312283466,1705740661544,-500.0,0.00025205,2]
[312283467,1705740661553,-500.0,0.00025205,2]
[312283468,1705740661562,-500.0,0.00025205,2]
[312283469,1705740661572,-500.0,0.00025205,2]
[312283470,1705740661581,-500.0,0.00025205,2]
[312283471,1705740661591,-500.0,0.00025205,2]
[312283472,1705740661600,-500.0,0.00025205,2]
[312283473,1705740661610,-500.0,0.00025205,2]
[312283474,1705740661619,-500.0,0.00025205,2]
[312283475,1705740661629,-503.10753766,0.00025205,2]
[312283476,1705740661638,-484.37488691,0.00025205,2]
[312283477,1705740661647,-575.68,0.00025205,2]
[312283478,1705740661656,-500.0,0.00025205,2]
[312283479,1705740661665,-500.0,0.00025205,2]
[312283480,1705740661675,-500.0,0.00025205,2]
[312283481,1705740661685,-635.52,0.00025205,2]
[312283482,1705740661747,-500.0,0.00025205,2]
[312283483,1705740661757,-500.0,0.00025205,2]
[312283484,1705740661766,-500.0,0.00025205,2]
[312283485,1705740661775,-254.14,0.00025205,2]
[312283486,1705740661784,-500.0,0.00025205,2]
[312283487,1705740661792,-500.0,0.00025205,2]
[312283488,1705740661802,-500.0,0.00025205,2]
[312283489,1705740661811,-500.0,0.00025205,2]
[312283490,1705740661820,-500.0,0.00025205,2]
[312283491,1705740661829,-500.0,0.00025205,2]
[312283492,1705740661839,-500.0,0.00025205,2]
[312283493,1705740661848,-500.0,0.00025205,2]
[312283494,1705740661857,-500.0,0.00025205,2]
[312283495,1705740661867,-500.0,0.00025205,2]
[312283496,1705740661878,-500.0,0.00025205,2]
[312283497,1705740661887,-500.0,0.00025205,2]